bitfinex-derivatives/quotes_ETHF0:USTF0_20250308
["timestamp","ask_amount","ask_price","bid_price","bid_amount"]
[1741421789781,2.98547,2133.6,2133.4,1.65032]
[1741421790183,2.048,2133.6,2133.4,1.65032]
[1741421790383,0.9375,2133.5,2133.4,1.65032]
[1741421790581,2.98547,2133.6,2133.4,1.65032]
[1741421791483,0.9375,2133.5,2133.4,0.7128]
[1741421791681,0.9375,2133.5,2133.4,0.06]
[1741421791884,2.203,2133.5,2133.4,0.06]
[1741421793283,2.203,2133.5,2133.3,3.2078]
[1741421793284,0.93758,2133.3,2133.2,0.00703103]
[1741421793476,0.93758,2133.3,2133.2,2.29703103]
[1741421795583,0.93758,2133.3,2132.8,3.03]
[1741421795584,3.2078,2133.4,2132.1,2.34519]
[1741421795781,0.9378,2132.8,2132.7,0.34]
[1741421797387,5.2508,2132.9,2132.5,0.00703103]
[1741421797588,0.93789,2132.6,2132.5,0.10703103]
[1741421799685,4.14569,2132.6,2132.5,0.10703103]
[1741421800285,5.2508,2132.9,2132.5,0.10703103]
[1741421800489,0.93789,2132.6,2132.5,0.10703103]
[1741421800694,5.2508,2132.9,2132.5,0.10703103]
[1741421800891,0.93789,2132.6,2132.5,0.10703103]
[1741421801285,0.93783,2132.8,2132.5,0.10703103]
[1741421801492,0.93783,2132.8,2132.6,0.6624]
[1741421801784,0.93783,2132.8,2132.7,0.6582]
[1741421801989,0.93783,2132.8,2132.7,2.6382]
[1741421802187,5.2508,2132.9,2132.5,0.00703103]
[1741421802386,0.93789,2132.6,2132.5,0.15703103]
[1741421805889,0.93783,2132.8,2132.5,0.15703103]
[1741421806091,2.98183,2132.8,2132.5,1.09494103]
[1741421806889,2.044,2132.8,2132.6,0.93785]
[1741421807095,2.044,2132.8,2132.7,0.93785]
[1741421807296,2.044,2132.8,2132.7,3.26785]
[1741421807693,2.044,2132.8,2132.7,2.33]
[1741421807894,2.9818,2132.8,2132.7,2.33]
[1741421808199,0.93789,2132.6,2132.5,0.00703103]
[1741421808396,0.93789,2132.6,2132.5,2.30703103]
[1741421818492,5.2518,2132.8,2132.5,3.24495103]
[1741421819097,5.2468,2132.8,2132.7,0.93785]
[1741421819296,6.1846,2132.8,2132.7,2.06]
[1741421820193,3.2078,2132.8,2132.7,2.06]
[1741421820399,2.97678,2132.9,2132.7,2.99785]
[1741421820600,2.97678,2132.9,2132.8,1.3361]
[1741421820802,2.97678,2132.9,2132.8,4.2285]
[1741421822296,2.98278103,2133.0,2132.8,5.16628]
[1741421822601,3.2078,2133.4,2132.8,7.4363]
[1741421822795,2.041,2133.4,2133.1,3.2078]
[1741421823001,2.041,2133.4,2133.2,1.3235]
[1741421823193,2.97856,2133.4,2133.3,0.6625]
[1741421823396,0.93756,2133.4,2133.3,2.7725]
[1741421823800,2.041,2133.5,2133.4,0.93754]
[1741421824001,2.041,2133.5,2133.4,2.98754]
[1741421824297,0.93747,2133.6,2133.4,2.05]
[1741421824890,0.9375,2133.5,2133.4,2.05]
[1741421830398,0.6472,2133.6,2133.1,4.78744]
[1741421830594,0.9375,2133.5,2133.2,2.25069]
[1741421830804,0.93747,2133.6,2133.4,0.93754]
[1741421831005,0.93745,2133.6,2133.5,0.6076]
[1741421831305,0.93745,2133.6,2133.5,2.6676]
[1741421832405,0.6227,2133.9,2133.5,3.6051]
[1741421832603,2.042,2133.8,2133.6,1.3193]
[1741421832901,0.93741,2133.7,2133.6,2.6404]
[1741421833108,0.93745,2133.6,2133.5,0.6076]
[1741421833303,0.93745,2133.6,2133.5,2.7976]
[1741421834510,0.93745,2133.6,2133.5,2.19]
[1741421835905,3.2078,2133.7,2133.5,2.19]
[1741421836105,0.93741,2133.7,2133.6,0.6271]
[1741421836311,0.93741,2133.7,2133.6,2.7371]
[1741421837206,3.2078,2134.0,2133.6,2.7371]
[1741421837402,0.93736,2133.8,2133.7,1.2723]
[1741421837912,0.93736,2133.8,2133.7,3.3423]
[1741421838217,5.2508,2134.0,2133.7,2.08]
[1741421838510,0.93741,2133.7,2133.6,0.63413103]
[1741421838715,0.93741,2133.7,2133.6,2.86413103]
[1741421839613,0.93739,2133.8,2133.6,3.80157103]
[1741421839812,0.93741,2133.7,2133.6,2.86413103]
[1741421840622,0.9374,2133.8,2133.6,3.80156103]
[1741421840815,0.93737,2133.8,2133.6,3.80156103]
[1741421841119,0.93741,2133.7,2133.6,2.86413103]
[1741421843515,0.93741,2133.7,2133.6,2.23703103]
[1741421848421,7.59405,2134.0,2133.6,2.23703103]
[1741421848422,3.2078,2134.0,2133.6,2.23703103]
[1741421848623,2.97536,2133.9,2133.7,1.57239]
[1741421848823,2.97536,2133.9,2133.8,0.6677]
[1741421849023,2.97536,2133.9,2133.8,3.4058]
[1741421849325,2.97536,2133.9,2133.8,1.3058]
[1741421849525,3.2078,2134.0,2133.8,1.3058]
[1741421849726,6.18308,2134.0,2133.8,3.5358]
[1741421849926,5.2458,2134.0,2133.9,0.93732]
[1741421850228,0.9373,2134.0,2133.9,2.16]
[1741421851420,0.93732,2133.9,2133.8,1.3058]
[1741421851624,0.93732,2133.9,2133.8,1.3858]
[1741421852224,0.93732,2134.0,2133.8,2.32316]
[1741421852828,4.79608,2134.3,2133.8,1.3858]
[1741421853026,3.8589,2134.3,2133.8,1.3858]
[1741421853237,4.79609,2134.3,2133.8,1.3858]
[1741421853735,0.93729,2134.0,2133.8,2.32314]
[1741421855836,0.93725,2134.1,2133.9,0.9373]
[1741421856139,0.93725,2134.1,2133.9,3.8973]
[1741421857337,3.2078,2134.3,2133.9,2.96]
[1741421857543,3.2078,2134.3,2134.2,0.93719]
[1741421857738,3.2078,2134.3,2134.2,3.22719]
[1741421858345,4.14495,2134.3,2134.2,2.29]
[1741421860345,0.9373,2134.0,2133.8,4.27714]
[1741421860636,0.9373,2134.0,2133.8,8.17104]
[1741421860842,0.6609,2134.2,2133.8,8.17104]
[1741421860843,0.6609,2134.2,2133.8,7.2337]
[1741421861047,0.93732,2133.9,2133.8,7.2337]
[1741421861437,0.93731,2134.0,2133.8,8.17104]
[1741421861850,3.8557,2134.3,2133.8,7.2337]
[1741421862142,0.93725,2134.1,2133.9,0.9373]
[1741421862344,0.93725,2134.1,2133.9,3.0073]
[1741421863846,3.8557,2134.3,2133.9,2.07]
[1741421864044,0.9372,2134.2,2134.0,0.93726]
[1741421864242,0.9372,2134.2,2134.0,3.48726]
[1741421864441,3.2078,2134.3,2134.0,2.55]
[1741421864742,0.93708,2134.5,2134.0,2.55]
[1741421864942,4.4499,2134.7,2134.1,3.2078]
[1741421865144,3.2078,2134.7,2134.4,3.2078]
[1741421865447,0.93704,2134.6,2134.5,0.6576]
[1741421865649,0.93704,2134.6,2134.5,2.9376]
[1741421870849,0.93704,2134.6,2134.5,2.28]
[1741421873050,3.2078,2134.7,2134.3,0.6359]
[1741421873251,0.9371,2134.4,2134.3,0.7559]
[1741421873949,0.9371,2134.4,2134.3,0.12]
[1741421874146,4.1449,2134.4,2134.3,0.12]
[1741421875556,0.9371,2134.4,2134.3,0.12]
[1741421877750,4.1449,2134.4,2134.3,0.12]
[1741421877952,0.93719,2134.2,2134.1,3.2078]
[1741421878642,0.93719,2134.2,2134.1,5.3578]
[1741421878848,0.93719,2134.2,2134.1,7.2932]
[1741421879556,0.93719,2134.2,2134.1,5.1432]
[1741421879949,0.93719,2134.2,2134.1,7.3132]
[1741421880155,0.93719,2134.2,2134.1,7.3832]
[1741421880356,0.93719,2134.2,2134.1,5.1432]
[1741421880654,0.93719,2134.2,2134.1,7.1932]
[1741421880849,0.93719,2134.2,2134.1,5.1432]
[1741421881058,0.93719,2134.2,2134.1,7.3832]
[1741421881249,0.93719,2134.2,2134.1,5.3878]
[1741421882356,0.93719,2134.2,2134.1,3.2078]
[1741421882555,0.93719,2134.2,2134.1,3.3078]
[1741421882757,3.2078,2134.4,2134.0,0.6619]
[1741421883059,0.93723,2134.1,2134.0,0.07]
[1741421884255,3.2078,2134.4,2134.0,0.07]
[1741421884461,0.93723,2134.1,2134.0,0.07]
[1741421884959,0.93719,2134.2,2134.0,0.07]
[1741421885154,0.93719,2134.2,2134.1,0.6314]
[1741421885554,0.93719,2134.2,2134.1,3.0114]
[1741421885852,3.2078,2134.4,2133.8,4.4779]
[1741421885853,5.55062,2134.4,2133.8,4.4779]
[1741421886049,0.93728,2134.0,2133.9,0.6314]
[1741421886246,0.93728,2134.0,2133.9,3.1014]
[1741421887359,2.031,2134.2,2134.0,0.93727]
[1741421887659,2.031,2134.2,2134.0,2.93727]
[1741421888262,0.93723,2134.1,2134.0,2.0]
[1741421888761,0.93723,2134.1,2134.0,2.93728]
[1741421888961,2.031,2134.2,2134.0,2.0]
[1741421889362,2.96615,2134.3,2134.2,0.93718]
[1741421889555,2.96615,2134.3,2134.2,3.29718]
[1741421889750,0.617,2134.5,2134.3,0.93715]
[1741421890064,0.93703,2134.6,2134.4,0.93706]
[1741421890362,0.93703,2134.6,2134.4,3.10706]
[1741421890864,0.93706,2134.5,2134.4,2.17]
[1741421891261,0.93725,2134.1,2133.9,4.14509]
[1741421891456,0.9372,2134.2,2134.0,1.58155]
[1741421891658,0.93715,2134.3,2134.1,0.93722]
[1741421891858,0.93715,2134.3,2134.1,3.15722]
[1741421892464,0.93719,2134.2,2134.1,2.22]
[1741421894267,0.93712,2134.4,2134.2,0.93718]
[1741421894478,2.97608,2134.5,2134.3,0.93712]
[1741421894765,2.97608,2134.5,2134.4,0.61]
[1741421894959,2.039,2134.5,2134.4,3.5771]
[1741421895360,0.93705,2134.6,2134.4,3.5771]
[1741421896873,0.93706,2134.5,2134.4,2.64]
[1741421899471,0.93706,2134.5,2134.4,2.03]
[1741421903071,0.93715,2134.3,2134.2,0.615]
[1741421903274,0.93715,2134.3,2134.2,2.725]
[1741421905876,0.93715,2134.3,2134.2,2.11]
[1741421906368,5.8505,2134.4,2134.1,0.6151]
[1741421906574,0.6152,2134.2,2134.1,0.02]
[1741421906769,0.93728,2134.0,2133.9,3.8442]
[1741421906971,0.93728,2134.0,2133.9,4.0242]
[1741421910176,0.93715,2134.3,2134.1,0.93722]
[1741421910377,0.93715,2134.3,2134.2,0.6485]
[1741421910572,0.93715,2134.3,2134.2,1.3097]
[1741421913178,2.033,2134.4,2133.9,3.8442]
[1741421913179,0.93728,2134.0,2133.9,3.8442]
[1741421913480,0.93728,2134.0,2133.9,3.4478]
[1741421913677,0.93728,2134.0,2133.9,0.24]
[1741421913871,0.93736,2133.8,2133.7,1.9598]
[1741421914181,0.93736,2133.8,2133.7,4.0298]
[1741421914479,0.93734,2133.9,2133.7,4.96719]
[1741421915376,2.9733,2134.0,2133.8,0.93733]
[1741421915686,2.97329,2134.0,2133.8,3.12733]
[1741421916380,2.036,2134.0,2133.8,3.12736]
[1741421916578,2.97329,2134.0,2133.8,3.12736]
[1741421917174,2.036,2134.0,2133.8,2.19]
[1741421917374,2.036,2134.0,2133.9,0.93732]
[1741421917577,2.036,2134.0,2133.9,2.04732]
[1741421918883,2.97328,2134.0,2133.9,2.04732]
[1741421920490,2.97328,2134.0,2133.9,1.11]
[1741421922794,3.63618,2134.0,2133.9,1.11]
[1741421924501,2.97328,2134.0,2133.9,1.11]
[1741421924786,2.036,2134.0,2133.9,1.11]
[1741421924991,2.97328,2134.0,2133.9,1.11]
[1741421927689,2.036,2134.0,2133.9,1.11]
[1741421927891,3.2078,2134.4,2133.9,1.11]
[1741421928091,0.93716,2134.3,2134.1,0.93721]
[1741421928393,2.97216,2134.3,2134.2,1.2356]
[1741421928592,2.97216,2134.3,2134.2,3.2156]
[1741421928990,2.97216,2134.3,2134.2,1.2356]
[1741421929192,2.97216,2134.3,2134.2,3.3156]
[1741421929495,2.97216,2134.3,2134.2,3.1556]
[1741421930595,2.97216,2134.3,2134.2,1.2356]
[1741421930893,2.97216,2134.3,2134.2,3.5556]
[1741421931696,2.97216,2134.3,2134.2,1.6156]
[1741421939098,1.8997,2134.7,2134.2,1.6156]
[1741421939099,2.96808,2134.5,2134.3,0.93712]
[1741421939297,2.96808,2134.5,2134.3,10.93412]
[1741421939994,2.031,2134.5,2134.3,9.997]
[1741421940202,0.9371,2134.4,2134.3,9.997]
[1741421941103,2.031,2134.5,2134.3,10.93415]
[1741421941291,0.93709,2134.5,2134.4,0.9371]
[1741421941604,2.96704,2134.6,2134.4,3.9971]
[1741421942000,0.93706,2134.5,2134.4,3.06]
[1741421942803,0.93721,2134.2,2134.0,7.08507]
[1741421942997,0.93721,2134.2,2134.0,1.35727]
[1741421943599,0.93721,2134.2,2134.1,0.6305]
[1741421943800,0.93721,2134.2,2134.1,3.1905]
[1741421945501,0.93721,2134.2,2134.1,2.56]
[1741421945703,0.93734,2133.9,2133.7,4.79371]
[1741421946006,3.59971,2134.2,2133.7,6.2063]
[1741421946007,0.93736,2133.8,2133.7,6.2063]
[1741421946500,2.6625,2134.2,2133.7,6.2063]
[1741421946701,0.9373,2134.0,2133.7,6.2063]
[1741421946904,2.6625,2134.2,2133.7,6.2063]
[1741421947099,0.93736,2133.8,2133.7,6.2063]
[1741421947305,0.93733,2133.9,2133.7,7.14369]
[1741421947702,2.6625,2134.2,2133.7,6.2063]
[1741421947907,0.93736,2133.8,2133.7,6.2063]
[1741421949699,0.93736,2133.8,2133.6,1.27503103]
[1741421949700,0.93741,2133.7,2133.6,0.00703103]
[1741421950102,4.14521,2133.7,2133.6,0.00703103]
[1741421950509,0.93763,2133.2,2133.1,1.9013]
[1741421950710,0.93763,2133.2,2133.1,4.7513]
[1741421950901,0.93763,2133.2,2133.1,4.1323]
[1741421951903,0.93763,2133.2,2132.9,0.00703103]
[1741421951904,0.93772,2133.0,2132.9,0.00703103]
[1741421952109,0.93772,2133.0,2132.9,2.82703103]
[1741421955513,2.97172,2133.0,2132.9,2.82703103]
[1741421955717,2.034,2133.0,2132.4,1.9344]
[1741421956015,0.93794,2132.5,2132.4,4.0369]
[1741421957114,3.2078,2132.8,2132.4,4.0369]
[1741421957313,2.036,2132.7,2132.4,4.0369]
[1741421957510,0.93791,2132.6,2132.4,4.0369]
[1741421958817,2.036,2132.7,2132.4,4.0369]
[1741421959114,0.93794,2132.5,2132.4,4.0369]
[1741421959315,0.93793,2132.6,2132.4,4.97488]
[1741421959716,0.93793,2132.6,2132.4,4.0369]
[1741421959918,0.93793,2132.6,2132.4,4.97488]
[1741421960418,0.93793,2132.6,2132.4,7.2447]
[1741421961117,0.93794,2132.5,2132.4,7.2447]
[1741421961316,0.93794,2132.5,2132.4,5.9578]
[1741421962516,2.21644,2132.5,2132.4,5.9578]
[1741421963419,4.4863,2132.5,2132.2,0.00703103]
[1741421963624,4.4863,2132.5,2131.8,0.6341]
[1741421963625,0.9382,2131.9,2131.8,0.6341]
[1741421963921,0.9382,2131.9,2131.8,4.3341]
[1741421965019,0.9382,2131.9,2131.8,3.7]
[1741421969725,0.93829,2131.7,2131.6,0.00703103]
[1741421969926,0.93829,2131.7,2131.6,3.77703103]
[1741421976927,0.93838,2131.5,2131.4,0.6608]
[1741421977423,0.93842,2131.4,2131.3,1.2937]
[1741421977627,4.14622,2131.4,2131.3,1.5737]
[1741421981333,0.93851,2131.2,2131.1,0.00703103]
[1741421981535,0.93851,2131.2,2131.1,1.55703103]
[1741421983435,5.2428,2131.4,2131.1,1.55703103]
[1741421983630,0.93851,2131.2,2131.1,1.55703103]
[1741421991633,1.56981,2131.2,2131.1,1.55703103]
[1741421991833,1.56981,2131.2,2131.1,0.00703103]
[1741421992842,1.56981,2131.2,2130.9,0.6117]
[1741421992843,0.9386,2131.0,2130.9,0.6117]
[1741421993042,0.9386,2131.0,2130.9,9.3217]
[1741421997037,0.9386,2131.0,2130.9,8.71]
[1741422004847,3.2078,2131.4,2130.9,8.71]
[1741422005153,0.93852,2131.2,2131.0,1.60947]
[1741422005349,0.93852,2131.2,2131.1,0.6668]
[1741422005557,0.93852,2131.2,2131.1,1.4553]
[1741422006251,0.93852,2131.2,2131.1,0.12]
[1741422006456,0.93855,2131.1,2131.0,0.6709]
[1741422006753,0.93855,2131.1,2131.0,8.3609]
[1741422007359,2.023,2131.3,2131.0,8.3609]
[1741422007653,0.93853,2131.2,2131.0,8.3609]
[1741422008252,6.50371644,2132.0,2131.0,11.5687]
[1741422008447,4.84589709,2131.9,2131.3,3.2078]
[1741422008651,0.93838,2131.5,2131.4,1.8546]
[1741422008855,3.9428,2131.9,2131.4,4.2046]
[1741422009059,0.93838,2131.5,2131.4,4.2046]
[1741422010056,0.93838,2131.5,2131.4,2.35]
[1741422010444,0.93838,2131.5,2131.4,2.9817]
[1741422010859,0.93835,2131.6,2131.4,3.92011]
[1741422011050,0.93835,2131.6,2131.5,1.3066]
[1741422011352,2.029,2131.8,2131.5,9.1766]
[1741422011657,2.029,2131.8,2131.6,0.93831]
[1741422011844,2.029,2131.8,2131.6,9.46831]
[1741422012047,0.93829,2131.7,2131.6,8.53]
[1741422012248,0.93829,2131.7,2131.6,9.1865]
[1741422012547,0.93829,2131.7,2131.6,8.53]
[1741422012745,4.76039,2131.7,2131.6,8.53]
[1741422013153,3.8221,2131.7,2131.3,3.2078]
[1741422013349,0.93842,2131.4,2131.3,0.06]
[1741422013554,6.18522,2131.4,2131.3,0.06]
[1741422014745,0.93866,2130.9,2130.6,4.14655]
[1741422014945,0.93866,2130.9,2130.7,5.65013103]
[1741422015354,2.98365103,2131.0,2130.7,6.58885103]
[1741422015553,2.04503103,2131.0,2130.9,4.14644]
[1741422015753,0.00703103,2131.0,2130.9,14.02644]
[1741422016158,0.00703103,2131.0,2130.9,13.0878]
[1741422016359,0.94563103,2131.0,2130.9,9.88]
[1741422017064,0.00703103,2131.0,2130.9,9.88]
[1741422017767,0.00703103,2131.0,2130.9,14.02644]
[1741422019061,2.048,2131.6,2130.9,17.0878]
[1741422019266,0.93844,2131.4,2131.0,0.6391]
[1741422019466,2.048,2131.6,2131.1,0.6229]
[1741422019664,2.048,2131.6,2131.1,10.7529]
[1741422019665,0.9384,2131.5,2131.1,10.7529]
[1741422019960,0.93849,2131.3,2131.1,10.7529]
[1741422020161,0.93845,2131.4,2131.1,10.7529]
[1741422020458,0.00703103,2131.5,2131.1,10.7529]
[1741422020665,0.93846,2131.4,2131.1,10.7529]
[1741422021257,0.93851,2131.2,2131.1,10.7529]
[1741422022070,0.93851,2131.2,2131.1,10.13]
[1741422022457,2.98851,2131.2,2131.1,10.13]
[1741422023462,2.05,2131.2,2131.0,0.6391]
[1741422023662,4.14635,2131.1,2131.0,0.07]
[1741422024661,0.93855,2131.1,2131.0,0.07]
[1741422025864,0.93855,2131.1,2130.7,0.00703103]
[1741422025865,0.93868,2130.8,2130.7,0.00703103]
[1741422026062,0.93868,2130.8,2130.7,8.13703103]
[1741422026764,6.19648,2130.8,2130.7,8.13703103]
[1741422026970,0.93882,2130.5,2130.4,1.3132]
[1741422027264,4.14662,2130.5,2130.4,8.28]
[1741422027869,0.93899,2130.1,2130.0,1.8989]
[1741422028063,0.93899,2130.1,2130.0,5.4072]
[1741422028265,0.93908,2129.9,2129.8,0.00703103]
[1741422028467,6.20188,2129.9,2129.8,2.14703103]
[1741422028661,6.20188,2129.9,2129.8,0.00703103]
[1741422028860,6.20188,2129.9,2129.8,2.34703103]
[1741422029067,6.20188,2129.9,2129.8,0.00703103]
[1741422029267,6.20188,2129.9,2129.8,2.21703103]
[1741422029671,6.20188,2129.9,2129.8,1.03e-06]
[1741422029871,5.2628,2129.9,2129.2,4.4804]
[1741422030068,0.93935,2129.3,2129.2,2.19]
[1741422030262,2.057,2129.3,2129.2,2.19]
[1741422030463,3.2078,2129.9,2129.2,6.19]
[1741422030775,3.2078,2129.9,2129.4,3.2078]
[1741422031067,0.93921,2129.6,2129.5,0.655]
[1741422031268,5.2758,2129.6,2129.3,0.00468735]
[1741422031473,5.2758,2129.6,2129.3,4.69468735]
[1741422031474,0.9393,2129.4,2129.3,4.69468735]
[1741422031874,0.9393,2129.4,2129.3,0.00468735]
[1741422032271,0.9393,2129.4,2129.3,2.13468735]
[1741422032477,0.9393,2129.4,2129.3,0.00468735]
[1741422032676,0.6359,2129.5,2129.3,1.95468735]
[1741422032877,0.9393,2129.4,2129.3,1.95468735]
[1741422033270,0.9393,2129.4,2129.3,0.00468735]
[1741422034073,0.9393,2129.4,2129.3,7.35e-06]
[1741422034074,5.5752,2129.4,2129.3,7.35e-06]
[1741422035278,5.5752,2129.4,2127.8,3.2078]
[1741422035279,7.5599,2129.4,2127.8,3.2078]
[1741422035481,0.93981,2128.3,2128.1,3.2078]
[1741422035681,2.34886,2128.9,2128.2,0.9398]
[1741422035682,0.93966,2128.6,2128.2,0.9398]
[1741422035877,3.2078,2128.9,2128.5,3.2078]
[1741422036182,2.091,2129.1,2128.6,1.284]
[1741422036380,2.091,2129.1,2128.6,8.914]
[1741422036584,0.93949,2129.0,2128.6,8.914]
[1741422036783,2.09803103,2129.1,2128.6,9.85363]
[1741422037091,0.93954,2128.9,2128.6,8.914]
[1741422037278,0.93957,2128.8,2128.6,8.914]
[1741422037681,2.09803103,2129.1,2128.6,8.914]
[1741422037887,0.93954,2128.9,2128.6,9.85363]
[1741422038984,0.00703103,2129.1,2128.6,8.914]
[1741422039185,0.93914,2129.8,2129.5,0.93923]
[1741422039489,0.93914,2129.8,2129.6,0.6679]
[1741422039687,0.93917,2129.7,2129.6,5.0979]
[1741422040889,0.93917,2129.7,2129.6,4.43]
[1741422041993,3.21483103,2129.9,2129.6,4.43]
[1741422042688,5.3028,2130.4,2129.8,3.2078]
[1741422042990,3.2078,2130.4,2129.9,0.645]
[1741422043187,0.93879,2130.6,2130.3,0.93888]
[1741422043395,2.098,2130.7,2130.3,6.32]
[1741422043689,0.93886,2130.4,2130.3,6.32]
[1741422045795,0.93885,2130.5,2130.3,6.32]
[1741422045987,2.10503103,2130.7,2130.3,6.32]
[1741422046294,0.93886,2130.4,2130.3,6.32]
[1741422046793,0.93881,2130.6,2130.3,7.2589]
[1741422047183,0.93883,2130.5,2130.3,6.32]
[1741422047583,2.10503103,2130.7,2130.3,6.32]
[1741422047794,0.93886,2130.4,2130.3,6.32]
[1741422047995,2.10503103,2130.7,2130.3,6.32]
[1741422048192,0.93885,2130.5,2130.3,6.32]
[1741422048385,0.93886,2130.5,2130.3,6.32]
[1741422048696,2.10503103,2130.7,2130.3,6.32]
[1741422048896,0.93884,2130.5,2130.3,6.32]
[1741422050197,0.93884,2130.5,2130.3,7.2589]
[1741422050396,0.93884,2130.5,2130.3,6.32]
[1741422050599,2.10503103,2130.7,2130.3,6.32]
[1741422050897,2.10503103,2130.7,2130.3,7.25887]
[1741422051099,0.93882,2130.5,2130.3,7.25887]
[1741422051300,3.04378103,2130.7,2130.5,0.93881]
[1741422051496,0.00703103,2130.7,2130.5,4.55]
[1741422051707,3.2078,2131.3,2130.6,1.2719]
[1741422051897,0.93873,2130.7,2130.6,2.9804]
[1741422052106,0.93873,2130.7,2130.6,2.33]
[1741422052607,2.7233,2130.9,2130.6,2.05]
[1741422052806,0.93873,2130.7,2130.6,2.05]
[1741422053007,0.93879,2130.6,2130.4,0.94588103]
[1741422053207,2.73033103,2130.9,2130.4,2.39703103]
[1741422053411,2.101,2130.8,2130.7,0.93872]
[1741422053610,2.101,2130.8,2130.7,5.23872]
[1741422054310,0.00703103,2130.9,2130.7,4.3]
[1741422054515,2.103,2131.3,2130.8,4.77718]
[1741422054716,2.103,2131.3,2131.2,0.93851]
[1741422054907,2.103,2131.3,2131.2,6.38851]
[1741422055220,3.2078,2131.6,2131.5,0.93838]
[1741422055510,3.2078,2131.6,2131.5,6.41838]
[1741422055711,2.103,2131.7,2131.6,0.93833]
[1741422055908,2.103,2131.7,2131.6,2.89053]
[1741422056112,0.00703103,2131.8,2131.6,2.89051]
[1741422056310,0.00703103,2131.8,2131.6,1.9522]
[1741422056515,0.00703103,2131.8,2131.7,0.93829]
[1741422056704,0.00703103,2131.8,2131.7,9.18]
[1741422057413,0.94527103,2131.8,2131.7,9.18]
[1741422057813,0.00703103,2131.8,2131.7,9.18]
[1741422058518,0.94527103,2131.8,2131.7,9.18]
[1741422059114,0.93833,2131.6,2131.5,0.00703103]
[1741422059315,3.04433,2131.6,2131.5,2.14703103]
[1741422059516,3.04433,2131.6,2131.5,1.92703103]
[1741422059712,3.04433,2131.6,2131.5,0.00703103]
[1741422059914,3.04433,2131.6,2131.5,4.08703103]
[1741422060720,3.04433,2131.6,2131.5,0.00703103]
[1741422061421,3.04433,2131.6,2131.5,2.27703103]
[1741422061722,3.04433,2131.6,2131.5,0.00703103]
[1741422063817,2.34606,2131.4,2130.7,0.6615]
[1741422064017,0.93868,2130.8,2130.7,9.3515]
[1741422064422,0.93868,2130.8,2130.7,8.69]
[1741422065112,0.93873,2130.7,2130.6,0.6141]
[1741422065312,0.93873,2130.7,2130.6,5.4841]
[1741422065516,0.93877,2130.6,2130.5,0.00703103]
[1741422065722,0.93877,2130.6,2130.5,0.07703103]
[1741422066516,0.93877,2130.6,2130.5,0.00703103]
[1741422066915,3.2078,2130.8,2130.5,0.00703103]
[1741422066916,3.2078,2130.8,2130.5,1.19703103]
[1741422067210,4.1465,2130.8,2130.5,2.13583103]
[1741422067520,0.93877,2130.7,2130.5,1.19703103]
[1741422067715,3.2078,2130.8,2130.5,1.19703103]
[1741422068115,0.93877,2130.7,2130.5,1.19703103]
[1741422068416,4.1465,2130.8,2130.5,2.13581103]
[1741422068623,2.113,2130.9,2130.5,1.19703103]
[1741422069120,0.93877,2130.6,2130.5,1.19703103]
[1741422071427,0.93875,2130.7,2130.5,1.19703103]
[1741422071625,0.93877,2130.6,2130.5,1.19703103]
[1741422072020,0.93874,2130.7,2130.5,2.13584103]
[1741422072220,2.113,2130.9,2130.6,0.93874]
[1741422072421,2.113,2130.9,2130.6,5.34]
[1741422072622,2.113,2130.9,2130.5,0.00703103]
[1741422072818,0.93877,2130.6,2130.5,2.25703103]
[1741422076921,3.04974,2130.7,2130.5,3.19584103]
[1741422077328,2.111,2130.7,2130.5,2.25703103]
[1741422077529,0.93877,2130.6,2130.5,2.25703103]
[1741422078927,0.93877,2130.6,2130.5,0.00703103]
[1741422079121,4.0,2130.6,2129.7,3.2078]
[1741422079330,0.93913,2129.8,2129.7,3.19]
[1741422079524,4.14693,2129.8,2129.7,3.19]
[1741422080330,0.93935,2129.3,2129.2,3.8488]
[1741422080526,0.93935,2129.3,2129.2,7.7878]
[1741422081024,0.93933,2129.4,2129.2,7.7878]
[1741422081230,2.115,2129.6,2129.3,0.93935]
[1741422081530,2.115,2129.6,2129.3,3.4]
[1741422081731,0.9393,2129.5,2129.3,3.4]
[1741422081932,2.115,2129.6,2129.3,3.4]
[1741422082331,0.9393,2129.4,2129.3,3.4]
[1741422085236,0.93943,2129.1,2129.0,0.64803103]
[1741422085440,0.93943,2129.1,2129.0,1.46703103]
[1741422086333,3.05541,2129.2,2129.0,1.46703103]
[1741422086732,0.93943,2129.1,2129.0,2.09313103]
[1741422087740,0.93943,2129.1,2129.0,1.46703103]
[1741422088428,5.3238,2129.2,2129.0,1.46703103]
[1741422088631,0.93943,2129.1,2129.0,1.46703103]
[1741422089536,2.116,2129.2,2129.0,1.46703103]
[1741422089837,0.6694,2129.7,2129.0,4.67483103]
[1741422090035,2.111,2129.7,2129.1,0.666]
[1741422090233,3.0502,2129.7,2129.4,0.93928]
[1741422090434,0.93922,2129.6,2129.5,0.6242]
[1741422090634,0.93922,2129.6,2129.5,0.7542]
[1741422090834,0.93922,2129.6,2129.5,0.13]
[1741422091244,0.93935,2129.3,2129.2,0.6242]
[1741422091543,0.93935,2129.3,2129.2,4.4742]
[1741422092539,0.93935,2129.3,2129.2,3.85]
[1741422094547,0.93939,2129.2,2129.1,0.666]
[1741422094748,0.93939,2129.2,2129.1,4.656]